bitfinex-derivatives/quotes_SOLF0:USTF0_20250823
["timestamp","ask_amount","ask_price","bid_price","bid_amount"]
[1755929690373,130.5,206.96,206.91,4.49690343]
[1755929690576,130.5,206.96,206.92,4.49690343]
[1755929690872,24.1651,207.0,206.85,7.4064]
[1755929691069,130.32,206.99,206.86,1.97704974]
[1755929691372,130.22,206.98,206.87,11.01472359]
[1755929691569,130.22,206.98,206.85,7.4064]
[1755929691570,4.8339,206.96,206.88,6.47275717]
[1755929691770,4.8339,206.96,206.89,6.47275717]
[1755929691972,130.16,206.98,206.9,6.47247657]
[1755929692169,130.16,206.98,206.91,4.49570743]
[1755929692368,130.16,206.98,206.87,4.836]
[1755929692564,154.328,206.98,206.88,4.49408719]
[1755929692873,154.328,206.98,206.89,4.49408719]
[1755929693065,4.8345,206.94,206.85,2.57]
[1755929693264,130.16,206.98,206.86,6.4709206]
[1755929693469,130.16,206.98,206.87,4.49449517]
[1755929693668,130.16,206.98,206.88,4.49449517]
[1755929693961,130.16,206.98,206.85,2.57]
[1755929694165,4.8346,206.94,206.86,4.49398998]
[1755929694368,4.8346,206.94,206.87,4.49398998]
[1755929694672,4.8346,206.94,206.85,2.57]
[1755929694972,4.8346,206.94,206.86,4.49348134]
[1755929695166,4.8346,206.94,206.85,2.57]
[1755929695473,4.8346,206.94,206.86,4.49348265]
[1755929695666,4.8346,206.94,206.85,2.57]
[1755929695868,4.8346,206.94,206.86,4.49308909]
[1755929696069,4.8346,206.94,206.85,2.57]
[1755929696269,4.8346,206.94,206.86,4.49305296]
[1755929696573,4.8346,206.94,206.85,2.57]
[1755929696772,4.8346,206.94,206.86,4.49249492]
[1755929696969,4.8346,206.94,206.85,2.57]
[1755929697166,4.8356,206.89,206.78,2.57]
[1755929697366,4.8356,206.89,206.79,6.46898547]
[1755929697573,129.68,206.92,206.8,9.33048104]
[1755929697875,129.64,206.93,206.81,7.06308104]
[1755929698074,129.64,206.94,206.81,2.57]
[1755929698568,129.64,206.94,206.82,4.8371]
[1755929699367,24.171,206.95,206.75,2.57]
[1755929699673,24.171,206.95,206.77,2.57]
[1755929699871,129.58,206.94,206.79,2.57]
[1755929700173,8.0288856,207.01,206.83,2.57]
[1755929700374,333.2488856,207.07,206.87,24.1797]
[1755929700574,153.7991,207.06,206.92,7.4048]
[1755929701081,454.9,207.07,206.95,4.8341]
[1755929701270,454.9,207.07,206.92,2.57]
[1755929701672,4.8327,207.01,206.92,2.57]
[1755929701873,325.22,207.07,206.92,2.57]
[1755929702174,129.66,207.06,206.92,2.57]
[1755929702374,129.66,207.06,206.95,4.8341]
[1755929702571,129.66,207.06,206.96,2.57]
[1755929702869,325.22,207.07,206.97,4.8336]
[1755929703068,139.08306244,207.11,206.98,2.57]
[1755929703271,17.55194804,207.15,206.98,2.57]
[1755929703473,325.06,207.19,207.06,2.71]
[1755929704180,329.8886,207.19,207.06,2.71]
[1755929704476,24.1341,207.27,207.08,2.71]
[1755929704672,129.76,207.26,207.1,2.71]
[1755929704872,4.8272,207.25,207.1,7.5405]
[1755929705370,8.0288856,207.32,207.1,7.5405]
[1755929705371,24.1137,207.44,207.21,2.71]
[1755929705571,129.74,207.43,207.22,9.37409827]
[1755929705774,9.52306244,207.42,207.21,2.71]
[1755929706178,24.1256,207.34,207.21,2.71]
[1755929706477,154.3656,207.34,207.1,24.1527]
[1755929706676,325.0,207.38,207.15,2.71]
[1755929706879,24.1265,207.33,207.15,2.71]
[1755929707978,28.9562,207.3,207.15,2.71]
[1755929708280,130.16,207.29,207.15,2.71]
[1755929708578,130.16,207.29,207.16,4.88534719]
[1755929708776,130.16,207.29,207.15,2.71]
[1755929709280,130.16,207.29,207.16,4.88270855]
[1755929709483,130.16,207.29,207.15,2.71]
[1755929709781,130.16,207.29,207.16,4.88270855]
[1755929709978,130.0,207.29,207.15,2.71]
[1755929710277,130.0,207.29,207.16,4.88269227]
[1755929710479,130.0,207.29,207.15,2.71]
[1755929710679,4.8257,207.31,207.16,4.87921702]
[1755929710976,129.74,207.3,207.17,4.87880388]
[1755929711176,129.74,207.3,207.18,4.87880388]
[1755929711372,129.74,207.3,207.15,2.71]
[1755929711578,129.74,207.3,207.16,4.87578272]
[1755929711772,129.74,207.3,207.17,4.87578272]
[1755929711985,28.9547,207.31,207.18,4.87578743]
[1755929712178,24.1256,207.34,207.19,2.71]
[1755929712378,24.1278,207.32,207.2,4.87209367]
[1755929712681,24.1278,207.32,207.19,2.71]
[1755929712682,24.1278,207.32,207.1,2.71]
[1755929712979,24.1278,207.32,207.11,9.30075989]
[1755929713180,24.1278,207.32,207.12,9.30075989]
[1755929713382,4.8263,207.29,207.14,2.71]
[1755929713576,4.8263,207.29,207.15,4.87362377]
[1755929713776,129.6,207.28,207.16,4.87362377]
[1755929713976,129.6,207.28,207.17,4.87362377]
[1755929714179,129.6,207.28,207.14,2.71]
[1755929714580,129.6,207.28,207.15,4.86970205]
[1755929714775,15.30827939,207.33,207.17,2.71]
[1755929714776,4.8254,207.33,207.17,2.71]
[1755929714979,134.3054,207.33,207.18,4.86970205]
[1755929715180,134.3054,207.33,207.19,7.57970205]
[1755929715377,4.826,207.3,207.2,4.86970205]
[1755929715580,256.50667939,207.39,207.19,2.71]
[1755929715788,15.30827939,207.39,207.19,2.71]
[1755929715979,129.56,207.33,207.2,4.86631912]
[1755929716177,129.56,207.33,207.19,2.71]
[1755929716383,129.56,207.33,207.2,4.86407601]
[1755929716584,349.1214,207.38,207.19,2.71]
[1755929716785,129.54,207.33,207.19,2.71]
[1755929717083,349.1214,207.38,207.2,4.86434811]
[1755929717278,129.5,207.33,207.19,2.71]
[1755929717481,4.8251,207.34,207.2,4.86262647]
[1755929717680,129.44,207.36,207.21,7.57262647]
[1755929717984,24.1245,207.35,207.21,2.71]
[1755929718182,129.44,207.36,207.21,2.71]
[1755929718887,158.3879,207.36,207.21,2.71]
[1755929719282,153.5633,207.36,207.21,2.71]
[1755929719484,4.8252,207.34,207.21,2.71]
[1755929720180,129.44,207.36,207.21,2.71]
[1755929720385,349.1214,207.38,207.21,2.71]
[1755929720386,4.8244,207.37,207.21,2.71]
[1755929720583,4.8244,207.37,207.23,2.71]
[1755929720986,325.0,207.38,207.23,7.5375]
[1755929721289,454.2,207.38,207.23,7.5375]
[1755929721491,325.0,207.38,207.25,4.827]
[1755929722079,325.0,207.38,207.26,2.71]
[1755929722391,325.0,207.38,207.27,9.68031349]
[1755929722580,129.04,207.4,207.27,4.8266]
[1755929722787,4.823,207.43,207.26,2.71]
[1755929722987,133.943,207.43,207.3,2.71]
[1755929723182,129.12,207.43,207.3,2.71]
[1755929723382,129.12,207.43,207.31,4.8257]
[1755929723587,24.1106,207.47,207.31,4.8257]
[1755929723783,129.0,207.46,207.31,4.8257]
[1755929724188,129.0,207.46,207.3,2.71]
[1755929724189,324.54,207.49,207.34,2.71]
[1755929724390,133.8019,207.48,207.34,2.71]
[1755929724590,4.8219,207.48,207.35,4.8247]
[1755929724792,128.96,207.48,207.35,4.8247]
[1755929725290,324.54,207.49,207.35,4.8247]
[1755929725490,329.3617,207.49,207.36,2.71]
[1755929725793,458.2617,207.49,207.36,2.71]
[1755929726192,329.3617,207.49,207.36,2.71]
[1755929726389,458.2417,207.49,207.36,2.71]
[1755929726590,250.4669,207.71,207.38,24.1199]
[1755929726785,24.0942,207.61,207.41,2.71]
[1755929726994,128.82,207.6,207.41,2.71]
[1755929727193,4.8202,207.55,207.42,4.8231]
[1755929727488,24.0942,207.61,207.4,9.47396416]
[1755929727489,129.7,207.57,207.43,2.71]
[1755929728493,134.4196,207.58,207.44,4.8227]
[1755929728690,129.58,207.58,207.43,2.71]
[1755929728895,4.8214,207.5,207.37,2.71]
[1755929729196,129.56,207.51,207.37,2.71]
[1755929729691,4.8223,207.46,207.37,2.71]
[1755929729996,24.1071,207.5,207.37,2.71]
[1755929730186,24.1105,207.47,207.29,2.71]
[1755929730990,4.8228,207.44,207.29,2.71]
[1755929731398,9.47396416,207.49,207.29,2.71]
[1755929731597,129.5,207.48,207.29,2.71]
[1755929732490,4.8235,207.41,207.29,2.71]
[1755929732692,24.1126,207.45,207.22,2.71]
[1755929732892,129.54,207.4,207.23,4.83340191]
[1755929733094,129.52,207.4,207.24,4.83340191]
[1755929733398,129.52,207.4,207.25,4.8355232]
[1755929733692,134.3438,207.4,207.22,2.71]
[1755929733897,4.8238,207.4,207.24,2.64]
[1755929734103,4.8238,207.4,207.25,4.83552119]
[1755929734396,4.8238,207.4,207.26,9.66232119]
[1755929734595,4.8238,207.4,207.27,4.83552119]
[1755929734794,4.8231,207.43,207.28,4.8263]
[1755929734996,4.8231,207.43,207.28,7.4663]
[1755929735291,4.8235,207.41,207.28,7.4663]
[1755929735497,24.1151,207.43,207.28,2.64]
[1755929736299,4.824,207.39,207.28,2.64]
[1755929736598,129.38,207.44,207.28,2.64]
[1755929736894,4.8233,207.42,207.28,2.64]
[1755929737199,129.26,207.44,207.29,4.87431645]
[1755929737403,24.1056,207.51,207.3,4.87431645]
[1755929737602,129.26,207.5,207.32,2.64]
[1755929737895,4.8221,207.47,207.33,4.8252]
[1755929738098,4.8221,207.47,207.32,2.64]
[1755929738596,4.8221,207.47,207.33,4.87964641]
[1755929738899,4.8221,207.47,207.32,2.64]
[1755929739197,4.8221,207.47,207.33,4.87964641]
[1755929739398,4.8221,207.47,207.32,2.64]
[1755929739597,4.8221,207.47,207.33,4.88403242]
[1755929739796,4.8221,207.47,207.34,4.88403242]
[1755929739993,153.1872,207.5,207.35,4.88403242]
[1755929739994,133.8614,207.5,207.35,4.88403242]
[1755929740188,4.8214,207.5,207.36,12.34856743]
[1755929740394,24.1022,207.54,207.37,4.88406743]
[1755929740595,4.8211,207.51,207.38,4.88406743]
[1755929740896,129.0,207.54,207.4,2.64]
[1755929741106,4.8205,207.54,207.4,2.64]
[1755929741305,153.1187,207.57,207.41,4.88748296]
[1755929741599,129.02,207.57,207.42,4.88748296]
[1755929741795,129.02,207.57,207.43,2.64]
[1755929741999,24.0943,207.61,207.44,4.89119047]
[1755929742189,128.98,207.62,207.45,4.89119047]
[1755929742500,128.98,207.62,207.46,9.71339047]
[1755929742699,128.98,207.62,207.47,4.89583383]
[1755929742896,4.8189,207.61,207.48,12.35753383]
[1755929743091,24.0901,207.65,207.49,4.89583383]
[1755929743297,128.92,207.64,207.5,4.90076781]
[1755929743497,128.92,207.64,207.51,4.90076781]
[1755929743699,4.8186,207.62,207.49,4.8215]
[1755929743896,4.8186,207.62,207.5,4.89988188]
[1755929744096,4.8186,207.62,207.51,4.89988188]
[1755929744297,4.8186,207.62,207.52,4.89988188]
[1755929744504,4.8186,207.62,207.53,4.89988188]
[1755929744704,4.8186,207.62,207.54,4.89988188]
[1755929745002,24.0995,207.57,207.36,4.8244]
[1755929745202,24.0999,207.56,207.37,11.20747462]
[1755929745399,4.8219,207.48,207.38,9.25460305]
[1755929745596,4.8219,207.48,207.39,4.82990091]
[1755929745898,24.1022,207.54,207.35,2.64]
[1755929746100,24.1022,207.54,207.36,4.42694441]
[1755929746298,24.1022,207.54,207.35,2.64]
[1755929746504,24.1059,207.51,207.36,4.42693578]
[1755929746801,130.32,207.5,207.37,6.38330722]
[1755929747098,130.32,207.5,207.35,2.64]
[1755929747099,130.32,207.5,207.38,4.42693578]
[1755929747302,4.8216,207.49,207.39,4.42693578]
[1755929747498,130.32,207.5,207.4,4.43938506]
[1755929747802,130.32,207.5,207.35,2.64]
[1755929748105,130.32,207.5,207.36,6.39833118]
[1755929748399,24.1022,207.54,207.33,24.1262]
[1755929748400,24.1022,207.54,207.38,2.64]
[1755929748605,4.8214,207.5,207.39,6.39833118]
[1755929748802,4.8214,207.5,207.4,6.39833118]
[1755929749001,4.8214,207.5,207.41,6.39833118]
[1755929749303,4.8214,207.5,207.42,6.40207315]
[1755929749604,4.8214,207.5,207.43,4.43914973]
[1755929749805,4.8207,207.53,207.44,4.43914973]
[1755929750003,454.28,207.55,207.45,6.40126581]
[1755929750201,454.28,207.55,207.46,4.43914973]
[1755929750504,454.28,207.55,207.42,2.64]
[1755929750706,454.28,207.55,207.43,1.96177207]
[1755929750906,4.8204,207.54,207.44,6.40623879]
[1755929751100,4.8204,207.54,207.45,4.44457174]
[1755929751301,4.8204,207.54,207.46,4.44457174]
[1755929751601,4.821,207.52,207.42,2.64]
[1755929751899,24.1023,207.54,207.43,4.44467696]
[1755929752106,129.9,207.53,207.44,6.40629254]
[1755929752302,24.1111,207.47,207.29,2.64]
[1755929752511,15.290957,207.49,207.3,1.96325719]
[1755929752803,15.290957,207.49,207.31,1.96325719]
[1755929753003,4.841,207.48,207.32,1.96325719]
[1755929753205,4.841,207.48,207.33,1.96325719]
[1755929753206,4.823,207.43,207.33,1.96325719]
[1755929753407,135.523,207.43,207.34,1.96325719]
[1755929753600,135.523,207.43,207.35,1.96325719]
[1755929753804,4.8235,207.41,207.29,2.64]
[1755929754005,4.8235,207.41,207.3,1.89479504]
[1755929754205,4.8235,207.41,207.31,1.89479504]
[1755929754398,4.8235,207.41,207.32,1.89479504]
[1755929754604,4.8235,207.41,207.33,1.89479504]
[1755929754806,4.8235,207.41,207.34,1.89479504]
[1755929755107,4.8235,207.41,207.29,2.64]
[1755929755402,4.8235,207.41,207.3,1.89663167]
[1755929755599,4.8235,207.41,207.31,1.89663167]
[1755929755798,4.8235,207.41,207.32,1.89663167]
[1755929756000,4.8235,207.41,207.33,1.89663167]
[1755929756203,4.8235,207.41,207.34,1.89663167]
[1755929756407,4.8235,207.41,207.29,2.64]
[1755929756609,4.8235,207.41,207.3,1.89615352]
[1755929756809,4.8235,207.41,207.31,1.89615352]
[1755929757105,4.8235,207.41,207.32,1.89615352]
[1755929757304,4.8235,207.41,207.33,1.89615352]
[1755929757504,4.8235,207.41,207.29,2.64]
[1755929757705,4.8235,207.41,207.3,1.89732298]
[1755929757909,4.8235,207.41,207.31,1.89732298]
[1755929758110,4.8235,207.41,207.32,1.89732298]
[1755929758313,4.8235,207.41,207.33,1.89732298]
[1755929758512,24.1175,207.41,207.23,2.64]
[1755929758710,4.841,207.4,207.24,1.89903625]
[1755929759012,24.127,207.33,207.25,1.89903625]
[1755929759217,130.24,207.32,207.17,2.64]
[1755929759414,130.24,207.32,207.18,1.90162519]
[1755929759617,130.24,207.32,207.19,1.90162519]
[1755929759618,4.826,207.3,207.19,1.90162519]
[1755929759808,130.24,207.32,207.2,1.90162519]
[1755929760010,130.24,207.32,207.17,2.64]
[1755929760213,130.24,207.32,207.18,1.90209346]
[1755929760414,24.1325,207.28,207.19,1.90209346]
[1755929760609,24.1325,207.28,207.1,2.64]
[1755929760815,24.1348,207.26,207.11,1.90267719]
[1755929761015,24.1348,207.26,207.12,1.90267719]
[1755929761212,24.1348,207.26,207.13,1.90267719]
[1755929761419,15.290957,207.25,207.03,2.64]
[1755929761617,4.8288,207.19,207.04,1.90433858]
[1755929761817,135.1088,207.19,207.06,2.64]
[1755929762015,135.1088,207.19,207.07,1.90433858]
[1755929762222,135.1088,207.19,207.06,2.64]
[1755929762919,24.1348,207.26,207.08,2.64]
[1755929762920,130.2,207.26,207.08,2.64]
[1755929763419,28.9647,207.24,207.08,2.64]
[1755929763618,24.1372,207.24,207.08,2.64]
[1755929763921,4.8286,207.19,207.08,2.64]
[1755929764317,24.1372,207.24,207.08,2.64]
[1755929765523,24.1398,207.22,207.08,2.64]
[1755929766420,130.26,207.21,207.08,2.64]
[1755929766623,135.0881,207.21,207.08,2.64]
[1755929767528,130.08,207.21,207.08,2.64]
[1755929768214,130.08,207.21,207.08,7.471]
[1755929768821,4.828,207.22,207.08,7.471]
[1755929769324,134.728,207.22,207.08,7.471]
[1755929770025,4.828,207.22,207.08,7.471]
[1755929770219,134.608,207.22,207.08,7.471]
[1755929770415,134.608,207.22,207.1,4.8306]
[1755929770720,129.76,207.24,207.11,2.52]
[1755929770920,324.3,207.27,207.11,7.3503]
[1755929771123,324.3,207.27,207.11,2.52]
[1755929771718,329.1268,207.27,207.14,2.52]
[1755929772527,4.8268,207.27,207.14,2.52]
[1755929773219,129.74,207.28,207.14,2.52]
[1755929774428,134.5665,207.28,207.16,4.8292]
[1755929774829,153.8726,207.28,207.14,2.52]
[1755929776531,4.827,207.26,207.15,4.8295]
[1755929777130,4.827,207.26,207.18,0.03389126]
[1755929780529,4.8274,207.24,207.18,0.03389126]
[1755929780926,4.8269,207.27,207.18,0.03389126]
[1755929781932,24.128,207.32,207.19,2.52]
[1755929782127,152.788,207.32,207.19,2.52]
[1755929782331,4.8265,207.29,207.19,7.3485]
[1755929785434,4.8265,207.29,207.2,4.8281]
[1755929785638,24.1261,207.34,207.2,4.8281]
[1755929785831,324.52,207.38,207.19,2.52]
[1755929786036,4.8248,207.36,207.24,4.8272]
[1755929786231,128.26,207.36,207.24,4.8272]
[1755929786731,348.641,207.38,207.24,4.8272]
[1755929786935,4.8251,207.34,207.26,4.8269]
[1755929788134,4.8251,207.34,207.23,7.3474]
[1755929788330,24.127,207.33,207.15,2.52]
[1755929789035,24.1327,207.28,207.15,2.52]
[1755929789342,128.5,207.27,207.15,2.52]
[1755929789635,128.5,207.27,207.03,9.6643]
[1755929789636,128.5,207.27,207.09,7.3507]
[1755929789835,128.5,207.27,207.1,4.45966856]
[1755929790039,128.5,207.27,207.11,4.45966856]
[1755929790235,24.1353,207.26,207.12,4.45966856]
[1755929790437,24.1353,207.26,207.11,4.8303]
[1755929790739,24.1353,207.26,207.12,4.46048684]
[1755929791035,4.8277,207.23,207.12,4.83]
[1755929791342,128.32,207.25,207.09,2.52]
[1755929791537,128.32,207.25,207.1,4.46331319]
[1755929791737,4.8286,207.19,207.09,2.52]
[1755929792134,4.8286,207.19,207.1,4.46421196]
[1755929792334,4.8286,207.19,207.09,2.52]
[1755929792732,4.8286,207.19,207.1,4.52206743]
[1755929792931,4.8286,207.19,207.09,2.52]
[1755929793242,152.3175,207.24,207.1,4.52273393]
[1755929793437,152.3175,207.24,207.09,2.52]
[1755929793438,152.3175,207.24,207.11,4.52273393]
[1755929793638,152.3175,207.24,207.12,4.52273393]
[1755929793839,152.3175,207.24,207.09,2.52]
[1755929794033,152.3175,207.24,207.1,4.52516599]
[1755929794239,152.3175,207.24,207.11,4.52516599]
[1755929794438,152.3175,207.24,207.12,4.52516599]
[1755929794738,4.8285,207.2,207.13,4.52516599]
[1755929794936,4.8285,207.2,207.1,4.8306]
[1755929795240,4.8288,207.18,207.11,4.53195951]
[1755929795545,24.1327,207.28,207.09,2.52]
[1755929795748,4.8272,207.25,207.12,4.8301]
[1755929795949,4.8272,207.25,207.13,4.53565531]
[1755929796148,4.8272,207.25,207.14,4.53565531]
[1755929796338,4.8272,207.25,207.15,4.53565531]
[1755929796541,4.8277,207.23,207.16,4.53565531]
[1755929796740,4.8277,207.23,207.17,4.53565531]
[1755929796937,4.8277,207.23,207.11,2.79]
[1755929797240,4.8277,207.23,207.12,10.93932063]
[1755929797438,4.8277,207.23,207.13,10.93932063]
[1755929797640,4.8277,207.23,207.14,4.54116243]
[1755929797845,4.8277,207.23,207.15,4.54116243]
[1755929798046,4.8277,207.23,207.16,4.54116243]
[1755929798248,4.8277,207.23,207.17,4.54116243]
[1755929798543,4.8277,207.23,207.18,4.54116243]
[1755929798750,4.8277,207.23,207.11,7.6203]
[1755929798951,4.8277,207.23,207.12,10.96032393]
[1755929799252,4.8282,207.21,207.13,10.96032393]
[1755929799451,24.1377,207.24,207.14,4.54988105]
[1755929799750,24.1384,207.23,207.15,4.54988105]
[1755929799951,24.143,207.19,207.02,2.79]
[1755929800143,9.49900141,207.17,207.03,10.96945074]
[1755929800347,24.1528,207.11,207.04,4.55359585]
[1755929800654,24.1528,207.11,206.97,2.79]
[1755929800853,24.1528,207.11,206.98,10.82239139]
[1755929801146,24.1528,207.11,206.99,10.82239139]
[1755929801351,5.38464538,207.15,207.0,10.82323528]
[1755929801547,128.06,207.14,207.01,10.82323528]
[1755929801747,128.06,207.14,207.02,4.40298269]
[1755929801949,128.06,207.14,207.03,4.40298269]
[1755929802148,128.06,207.14,206.97,2.79]
[1755929802149,24.1518,207.12,206.97,2.79]
[1755929802354,9.49900141,207.12,206.98,10.83001274]
[1755929802555,9.49900141,207.12,206.99,10.83001274]
[1755929802742,9.49900141,207.12,207.0,4.40645935]
[1755929802944,9.49900141,207.12,207.01,4.40645935]
[1755929803251,4.8319,207.05,206.97,2.79]
[1755929803455,4.8319,207.05,206.92,4.8347]
[1755929803456,29.53954538,207.09,206.98,4.40608836]
[1755929803758,29.53954538,207.09,206.93,2.79]
[1755929803945,24.1549,207.09,206.94,10.83148821]
[1755929804149,127.94,207.08,206.95,10.83148821]
[1755929804345,24.1549,207.09,206.96,10.83148821]
[1755929804554,152.1137,207.1,206.97,10.83148821]
[1755929804851,152.1137,207.1,206.98,10.825308]
[1755929805051,127.96,207.1,206.99,4.40420215]
[1755929805251,127.96,207.1,206.97,2.79]
[1755929805449,33.65030141,207.12,206.98,4.4022795]
[1755929805655,24.1566,207.08,206.99,4.4022795]
[1755929805859,24.1566,207.08,206.97,2.79]
[1755929806152,152.0552,207.09,206.98,4.4022795]
[1755929806350,152.0552,207.09,206.99,4.4022795]
[1755929806551,152.0552,207.09,206.97,2.79]
[1755929806858,4.8312,207.08,206.98,4.40067889]
[1755929807056,4.8312,207.08,206.99,4.40067889]
[1755929807252,4.8312,207.08,206.97,2.79]
[1755929807449,4.8312,207.08,206.98,4.39836875]
[1755929807651,24.1583,207.06,206.92,2.79]
[1755929807848,24.1583,207.06,206.93,6.41268462]
[1755929808054,24.1583,207.06,206.94,10.81123053]
[1755929808255,24.1583,207.06,206.95,10.81123053]
[1755929808452,127.9,207.09,206.96,7.18854591]
[1755929808757,127.62,207.1,206.97,4.39854591]
[1755929808960,33.65030141,207.12,206.98,4.39854591]
[1755929809252,127.66,207.11,206.99,4.396104]
[1755929809462,4.8312,207.08,206.96,7.6238]
[1755929809657,4.8312,207.08,206.97,4.39491121]
[1755929809854,24.1536,207.1,206.96,2.79]
[1755929810056,24.1536,207.1,206.97,4.39501986]
[1755929810256,4.8317,207.06,206.96,2.79]
[1755929810455,4.8317,207.06,206.97,4.39356968]
[1755929810657,4.8317,207.06,206.96,2.79]
[1755929810958,4.8317,207.06,206.97,4.39356968]
[1755929811160,4.8317,207.06,206.96,2.79]
[1755929811550,4.831,207.09,206.97,4.39220022]
[1755929811759,4.831,207.09,206.98,4.39191513]
[1755929811959,4.831,207.09,206.97,2.79]
[1755929812159,4.831,207.09,206.98,4.39187494]
[1755929812363,4.831,207.09,206.97,2.79]
[1755929812558,4.831,207.09,206.98,4.39097535]
[1755929812759,4.831,207.09,206.97,2.79]
[1755929812960,4.831,207.09,206.98,4.39097535]
[1755929813158,4.831,207.09,206.99,4.39097535]
[1755929813354,4.831,207.09,206.97,2.79]
[1755929813562,4.831,207.09,206.99,2.79]
[1755929814163,4.831,207.09,207.0,4.38974102]
[1755929814362,4.831,207.09,206.99,2.79]
[1755929815161,24.1513,207.12,207.0,9.22201603]
[1755929815162,4.8303,207.12,207.0,9.22201603]
[1755929815460,4.8303,207.12,207.01,4.38838346]
[1755929815660,4.8303,207.12,207.02,2.79]
[1755929818360,4.8307,207.1,207.02,2.79]
[1755929819563,4.8312,207.08,207.02,2.79]
[1755929819967,4.8312,207.08,206.98,2.79]
[1755929820362,4.8312,207.08,206.99,4.8332]
[1755929820563,4.8306,207.11,206.99,4.8332]
[1755929820764,24.1483,207.15,206.99,4.8332]
[1755929820765,24.1504,207.13,206.99,4.8332]
[1755929821166,4.8309,207.09,206.99,4.8332]
[1755929821366,4.8309,207.09,206.98,2.79]
[1755929821568,24.1515,207.12,206.98,2.79]
[1755929822467,4.8311,207.08,206.98,2.79]
[1755929822665,24.1546,207.09,206.98,2.79]
[1755929823271,4.8325,207.02,206.93,2.72]
[1755929823466,4.8325,207.02,206.94,4.49979393]
[1755929823670,4.8325,207.02,206.93,2.72]
[1755929823872,4.8325,207.02,206.94,4.49979393]
[1755929824067,4.832,207.05,206.95,4.49979393]
[1755929824274,4.832,207.05,206.93,2.72]
[1755929824572,4.832,207.05,206.94,4.49931382]
[1755929824768,4.832,207.05,206.95,9.33337039]
[1755929824964,4.832,207.05,206.95,4.8341]
[1755929825164,4.8323,207.03,206.93,2.72]
[1755929825370,4.8323,207.03,206.94,4.49927202]
[1755929825570,4.8323,207.03,206.93,2.72]
[1755929825775,4.8323,207.03,206.94,4.49899068]
[1755929825975,4.8323,207.03,206.93,2.72]
[1755929826172,4.8323,207.03,206.94,4.49906054]
[1755929826375,4.8323,207.03,206.93,2.72]
[1755929826576,4.8323,207.03,206.94,4.49880598]
[1755929826767,4.8323,207.03,206.93,2.72]
[1755929826965,9.49900141,207.04,206.87,2.72]
[1755929827676,4.834,206.96,206.87,2.72]
[1755929830474,4.8334,206.99,206.87,2.72]
[1755929830878,24.1642,207.01,206.87,2.72]
[1755929832175,24.1572,207.07,206.87,2.72]
[1755929832881,4.833,207.0,206.89,4.8355]
[1755929833083,4.833,207.0,206.9,2.72]
[1755929834283,4.8334,206.99,206.9,2.72]
[1755929836178,4.8338,206.97,206.9,2.72]
[1755929836378,24.1645,207.01,206.82,2.72]
[1755929836783,24.1645,207.01,206.83,10.97017236]
[1755929836983,24.171,206.95,206.83,10.97017236]
[1755929837687,24.1747,206.92,206.83,4.51307185]
[1755929838084,24.1747,206.92,206.76,2.72]
[1755929838381,136.47900141,206.97,206.78,2.72]
[1755929838586,136.47900141,206.97,206.79,10.97483152]
[1755929838884,4.8349,206.92,206.8,4.51079589]
[1755929839081,4.8349,206.92,206.81,4.51079589]